[Event "MČR juniorů a juniorek v rapid šachu 2023"]
[Site "Czech Republic"]
[Date "2023.09.23"]
[Round "3.28"]
[White "Krajicek, Matthew"]
[Black "Dvorak, Jan"]
[Result "0-1"]
[TimeControl "20 min + 5 sec per move"]
[WhiteFideId "23740175"]
[BlackFideId "23730722"]
[WhiteElo "1283"]
[BlackElo "1624"]

1. d4 {[%clk 00:20:08]} {[%emt 00:00:02]} Nf6 {[%clk 00:20:08]} {[%emt
00:00:02]} 2. Bf4 {[%clk 00:20:10]} {[%emt 00:00:04]} c6 {[%clk 00:20:00]}
{[%emt 00:00:13]} 3. Nf3 {[%clk 00:20:02]} {[%emt 00:00:12]} Qb6 {[%clk
00:20:03]} {[%emt 00:00:02]} 4. b3 {[%clk 00:19:08]} {[%emt 00:01:00]} d6
{[%clk 00:19:57]} {[%emt 00:00:11]} 5. c4 {[%clk 00:18:17]} {[%emt 00:00:56]}
Bf5 {[%clk 00:19:11]} {[%emt 00:00:51]} 6. e3 {[%clk 00:17:02]} {[%emt
00:01:19]} Nbd7 {[%clk 00:18:36]} {[%emt 00:00:41]} 7. Bd3 {[%clk 00:16:45]}
{[%emt 00:00:21]} Bg4 {[%clk 00:17:10]} {[%emt 00:01:31]} 8. Nbd2 {[%clk
00:15:55]} {[%emt 00:00:56]} g6 {[%clk 00:15:29]} {[%emt 00:01:47]} 9. h3
{[%clk 00:15:44]} {[%emt 00:00:15]} Bxf3 {[%clk 00:14:55]} {[%emt 00:00:38]} 10.
Qxf3 {[%clk 00:15:05]} {[%emt 00:00:45]} Bg7 {[%clk 00:13:37]} {[%emt
00:01:25]} 11. O-O {[%clk 00:14:15]} {[%emt 00:00:54]} O-O {[%clk 00:13:22]}
{[%emt 00:00:20]} 12. Ne4 {[%clk 00:10:53]} {[%emt 00:03:26]} Nh5 {[%clk
00:11:11]} {[%emt 00:02:16]} 13. Bh2 {[%clk 00:10:29]} {[%emt 00:00:29]} h6
{[%clk 00:09:36]} {[%emt 00:01:41]} 14. Rab1 {[%clk 00:08:54]} {[%emt
00:01:40]} f5 {[%clk 00:09:33]} {[%emt 00:00:07]} 15. Nd2 {[%clk 00:08:16]}
{[%emt 00:00:43]} e5 {[%clk 00:09:24]} {[%emt 00:00:15]} 16. dxe5 {[%clk
00:07:22]} {[%emt 00:00:58]} Nxe5 {[%clk 00:08:56]} {[%emt 00:00:33]} 17. Qe2
{[%clk 00:06:53]} {[%emt 00:00:35]} Rae8 {[%clk 00:07:37]} {[%emt 00:01:24]} 18.
Nf3 {[%clk 00:05:38]} {[%emt 00:01:18]} f4 {[%clk 00:06:30]} {[%emt 00:01:12]}
19. Nxe5 {[%clk 00:05:14]} {[%emt 00:00:30]} Rxe5 {[%clk 00:05:34]} {[%emt
00:01:01]} 20. Bxg6 {[%clk 00:04:51]} {[%emt 00:00:28]} f3 {[%emt 00:00:25]} 21.
Qd1 {[%clk 00:02:56]} {[%emt 00:01:58]} Rg5 {[%clk 00:02:36]} {[%emt 00:02:45]}
22. Bxh5 {[%clk 00:02:47]} {[%emt 00:00:14]} Rxh5 {[%clk 00:01:56]} {[%emt
00:00:45]} 23. Qxd6 {[%clk 00:02:32]} {[%emt 00:00:20]} fxg2 {[%clk 00:01:06]}
{[%emt 00:00:55]} 24. Rfd1 {[%clk 00:02:16]} {[%emt 00:00:21]} Qa5 {[%clk
00:00:50]} {[%emt 00:00:22]} 25. Qe6+ {[%clk 00:02:06]} {[%emt 00:00:14]} Kh8
{[%clk 00:00:50]} {[%emt 00:00:04]} 26. Rb2 {[%clk 00:01:40]} {[%emt 00:00:32]}
Bxb2 {[%clk 00:00:42]} {[%emt 00:00:14]} 27. Qg6 {[%clk 00:01:26]} {[%emt
00:00:16]} Qf5 {[%clk 00:00:27]} {[%emt 00:00:21]} 28. Qxf5 {[%clk 00:01:10]}
{[%emt 00:00:21]} Rhxf5 {[%clk 00:00:30]} {[%emt 00:00:03]} 29. f4 {[%clk
00:01:03]} {[%emt 00:00:11]} Re8 {[%clk 00:00:12]} {[%emt 00:00:24]} 30. Rb1
{[%clk 00:00:52]} {[%emt 00:00:16]} Ba3 {[%clk 00:00:06]} {[%emt 00:00:11]} 31.
Re1 {[%clk 00:00:48]} {[%emt 00:00:08]} Bc5 {[%clk 00:00:09]} {[%emt 00:00:02]}
32. Kxg2 {[%clk 00:00:47]} {[%emt 00:00:06]} Rxe3 {[%clk 00:00:11]} {[%emt
00:00:03]} 33. Rf1 {[%clk 00:00:37]} {[%emt 00:00:14]} Re2+ {[%clk 00:00:09]}
{[%emt 00:00:08]} 34. Kg3 {[%clk 00:00:28]} {[%emt 00:00:14]} Rxa2 {[%clk
00:00:13]} {[%emt 00:00:02]} 35. Kg4 {[%clk 00:00:25]} {[%emt 00:00:08]} Rf6
{[%clk 00:00:12]} {[%emt 00:00:06]} 36. Bg3 {[%clk 00:00:20]} {[%emt 00:00:10]}
Rb2 {[%clk 00:00:13]} {[%emt 00:00:04]} 37. f5 {[%clk 00:00:13]} {[%emt
00:00:12]} Rxb3 {[%clk 00:00:15]} {[%emt 00:00:03]} 38. Be5 {[%clk 00:00:16]}
{[%emt 00:00:02]} Kg7 {[%clk 00:00:14]} {[%emt 00:00:06]} 39. Rd1 {[%clk
00:00:13]} {[%emt 00:00:08]} Be7 {[%clk 00:00:10]} {[%emt 00:00:09]} 40. Rd7
{[%clk 00:00:16]} {[%emt 00:00:02]} Kf7 {[%clk 00:00:13]} {[%emt 00:00:03]} 41.
Bxf6 {[%clk 00:00:07]} {[%emt 00:00:14]} Kxf6 {[%clk 00:00:16]} {[%emt
00:00:02]} 42. Rd4 {[%clk 00:00:09]} {[%emt 00:00:03]} a5 {[%clk 00:00:17]}
{[%emt 00:00:04]} 43. Re4 {[%clk 00:00:09]} {[%emt 00:00:05]} h5+ {[%clk
00:00:16]} {[%emt 00:00:06]} 44. Kf4 {[%clk 00:00:10]} {[%emt 00:00:04]} Bd6+
{[%clk 00:00:18]} {[%emt 00:00:03]} 0-1

[Event "MČR juniorů a juniorek v rapid šachu 2023"]
[Site "Czech Republic"]
[Date "2023.09.23"]
[Round "3.29"]
[White "Macova, Marketa"]
[Black "Dudkova, Josefina"]
[Result "0-1"]
[TimeControl "20 min + 5 sec per move"]
[WhiteFideId "23715588"]
[BlackFideId "23712350"]
[WhiteElo "1228"]
[BlackElo "1437"]

1. e4 {[%clk 00:20:08]} {[%emt 00:00:01]} d5 {[%clk 00:20:08]} {[%emt
00:00:02]} 2. exd5 {[%clk 00:20:11]} {[%emt 00:00:02]} Qxd5 {[%clk 00:20:10]}
{[%emt 00:00:03]} 3. Nc3 {[%clk 00:20:14]} {[%emt 00:00:01]} Qd6 {[%clk
00:20:14]} {[%emt 00:00:02]} 4. Nf3 {[%clk 00:20:13]} {[%emt 00:00:06]} Bg4
{[%clk 00:20:14]} {[%emt 00:00:05]} 5. Be2 {[%clk 00:19:52]} {[%emt 00:00:26]}
Nf6 {[%clk 00:20:14]} {[%emt 00:00:06]} 6. d4 {[%clk 00:19:38]} {[%emt
00:00:19]} c6 {[%clk 00:20:04]} {[%emt 00:00:15]} 7. O-O {[%clk 00:19:13]}
{[%emt 00:00:30]} e6 {[%clk 00:19:56]} {[%emt 00:00:14]} 8. Bg5 {[%clk
00:18:49]} {[%emt 00:00:28]} Be7 {[%clk 00:19:50]} {[%emt 00:00:11]} 9. Qd2
{[%clk 00:18:17]} {[%emt 00:00:37]} O-O {[%clk 00:18:35]} {[%emt 00:01:20]} 10.
Nd1 {[%clk 00:18:01]} {[%emt 00:00:21]} Rd8 {[%clk 00:14:06]} {[%emt 00:04:34]}
11. c3 {[%clk 00:17:47]} {[%emt 00:00:19]} Ne4 {[%clk 00:12:49]} {[%emt
00:01:21]} 12. Bxe7 {[%clk 00:15:14]} {[%emt 00:02:39]} Nxd2 {[%clk 00:09:58]}
{[%emt 00:02:56]} 13. Bxd6 {[%clk 00:15:10]} {[%emt 00:00:09]} Rxd6 {[%clk
00:09:28]} {[%emt 00:00:36]} 14. Nxd2 {[%clk 00:14:10]} {[%emt 00:01:04]} Bxe2
{[%clk 00:09:30]} {[%emt 00:00:03]} 15. Re1 {[%clk 00:14:13]} {[%emt 00:00:02]}
Bd3 {[%clk 00:08:36]} {[%emt 00:00:58]} 16. Ne3 {[%clk 00:13:14]} {[%emt
00:01:04]} Nd7 {[%clk 00:07:31]} {[%emt 00:01:11]} 17. Rad1 {[%clk 00:10:46]}
{[%emt 00:02:33]} c5 {[%clk 00:05:11]} {[%emt 00:02:25]} 18. Nf3 {[%clk
00:07:45]} {[%emt 00:03:05]} c4 {[%clk 00:04:48]} {[%emt 00:00:29]} 19. b3
{[%clk 00:04:16]} {[%emt 00:03:34]} b5 {[%clk 00:04:42]} {[%emt 00:00:11]} 20.
a4 {[%clk 00:02:57]} {[%emt 00:01:25]} a6 {[%clk 00:03:47]} {[%emt 00:01:00]}
21. axb5 {[%clk 00:02:20]} {[%emt 00:00:41]} axb5 {[%clk 00:03:48]} {[%emt
00:00:04]} 22. bxc4 {[%clk 00:02:17]} {[%emt 00:00:08]} bxc4 {[%clk 00:03:50]}
{[%emt 00:00:03]} 23. Ra1 {[%clk 00:02:09]} {[%emt 00:00:12]} Rda6 {[%clk
00:03:34]} {[%emt 00:00:21]} 24. Rxa6 {[%clk 00:01:39]} {[%emt 00:00:35]} Rxa6
{[%clk 00:03:38]} {[%emt 00:00:01]} 25. Rc1 {[%clk 00:00:45]} {[%emt 00:00:59]}
Ra2 {[%clk 00:02:55]} {[%emt 00:00:47]} 26. Ng4 {[%clk 00:00:29]} {[%emt
00:00:21]} Nb6 {[%clk 00:02:02]} {[%emt 00:00:59]} 27. Nge5 {[%clk 00:00:23]}
{[%emt 00:00:11]} Nd5 {[%clk 00:00:58]} {[%emt 00:01:09]} 28. Nxd3 {[%clk
00:00:23]} {[%emt 00:00:05]} cxd3 {[%clk 00:01:02]} {[%emt 00:00:02]} 29. c4
{[%clk 00:00:22]} {[%emt 00:00:06]} Nf4 {[%clk 00:00:46]} {[%emt 00:00:20]} 30.
c5 {[%clk 00:00:15]} {[%emt 00:00:12]} Ne2+ {[%clk 00:00:48]} {[%emt 00:00:02]}
31. Kf1 {[%clk 00:00:14]} {[%emt 00:00:07]} Nxc1 {[%clk 00:00:52]} {[%emt
00:00:02]} 32. Ke1 {[%clk 00:00:12]} {[%emt 00:00:07]} Nb3 {[%clk 00:00:50]}
{[%emt 00:00:07]} 33. c6 {[%clk 00:00:09]} {[%emt 00:00:07]} Ra1# {[%emt
00:00:04]} 0-1

[Event "MČR juniorů a juniorek v rapid šachu 2023"]
[Site "Czech Republic"]
[Date "2023.09.23"]
[Round "3.31"]
[White "Jun, Rostislav"]
[Black "Hosova, Stella"]
[Result "1-0"]
[TimeControl "20 min + 5 sec per move"]
[WhiteFideId "23719524"]
[BlackFideId "23710489"]
[WhiteElo "1317"]
[BlackElo "1164"]

1. e4 {[%clk 00:20:05]} {[%emt 00:00:04]} c5 {[%clk 00:20:09]} {[%emt
00:00:02]} 2. Nf3 {[%clk 00:20:08]} {[%emt 00:00:02]} Nc6 {[%clk 00:20:12]}
{[%emt 00:00:01]} 3. d4 {[%clk 00:20:11]} {[%emt 00:00:02]} cxd4 {[%clk
00:20:15]} {[%emt 00:00:02]} 4. Nxd4 {[%clk 00:20:14]} {[%emt 00:00:02]} g6
{[%clk 00:20:17]} {[%emt 00:00:03]} 5. Nc3 {[%clk 00:20:16]} {[%emt 00:00:03]}
Nf6 {[%clk 00:20:11]} {[%emt 00:00:11]} 6. Be2 {[%clk 00:19:52]} {[%emt
00:00:29]} Bg7 {[%clk 00:20:14]} {[%emt 00:00:02]} 7. Nf3 {[%clk 00:19:45]}
{[%emt 00:00:12]} d6 {[%clk 00:20:06]} {[%emt 00:00:12]} 8. O-O {[%clk
00:19:47]} {[%emt 00:00:04]} O-O {[%clk 00:20:08]} {[%emt 00:00:03]} 9. Re1
{[%clk 00:18:39]} {[%emt 00:01:13]} b6 {[%clk 00:19:07]} {[%emt 00:01:07]} 10.
h3 {[%clk 00:16:26]} {[%emt 00:02:17]} e5 {[%clk 00:18:37]} {[%emt 00:00:35]}
11. Rb1 {[%clk 00:16:01]} {[%emt 00:00:31]} Bb7 {[%clk 00:18:16]} {[%emt
00:00:26]} 12. Bd3 {[%clk 00:15:39]} {[%emt 00:00:27]} a5 {[%clk 00:17:00]}
{[%emt 00:01:20]} 13. a3 {[%clk 00:14:50]} {[%emt 00:00:54]} Ne7 {[%clk
00:16:05]} {[%emt 00:00:59]} 14. Bg5 {[%clk 00:14:32]} {[%emt 00:00:22]} Qd7
{[%clk 00:16:00]} {[%emt 00:00:11]} 15. Bb5 {[%clk 00:13:07]} {[%emt 00:01:32]}
Bc6 {[%clk 00:15:19]} {[%emt 00:00:45]} 16. Bxc6 {[%clk 00:12:12]} {[%emt
00:01:00]} Nxc6 {[%clk 00:14:50]} {[%emt 00:00:34]} 17. Bxf6 {[%clk 00:12:03]}
{[%emt 00:00:14]} Bxf6 {[%clk 00:14:51]} {[%emt 00:00:04]} 18. Nd5 {[%clk
00:12:06]} {[%emt 00:00:03]} Bd8 {[%clk 00:14:03]} {[%emt 00:00:51]} 19. b4
{[%clk 00:11:32]} {[%emt 00:00:40]} a4 {[%clk 00:13:21]} {[%emt 00:00:48]} 20.
b5 {[%clk 00:11:30]} {[%emt 00:00:07]} Na5 {[%clk 00:13:17]} {[%emt 00:00:08]}
21. Nxe5 {[%clk 00:10:34]} {[%emt 00:01:01]} Qe6 {[%clk 00:11:42]} {[%emt
00:01:39]} 22. Nc6 {[%clk 00:09:43]} {[%emt 00:00:57]} Qd7 {[%clk 00:10:56]}
{[%emt 00:00:49]} 23. Nxd8 {[%clk 00:09:23]} {[%emt 00:00:27]} Qxd8 {[%clk
00:10:58]} {[%emt 00:00:03]} 24. Qd4 {[%clk 00:09:02]} {[%emt 00:00:26]} Rb8
{[%clk 00:10:20]} {[%emt 00:00:44]} 25. Nf6+ {[%clk 00:07:41]} {[%emt
00:01:25]} Kg7 {[%clk 00:09:37]} {[%emt 00:00:48]} 26. Nd7+ {[%clk 00:07:24]}
{[%emt 00:00:21]} f6 {[%clk 00:09:40]} {[%emt 00:00:02]} 27. Nxb8 {[%clk
00:07:23]} {[%emt 00:00:07]} Qxb8 {[%clk 00:09:43]} {[%emt 00:00:02]} 28. Rbd1
{[%clk 00:07:09]} {[%emt 00:00:19]} Rd8 {[%clk 00:09:40]} {[%emt 00:00:08]} 29.
g4 {[%clk 00:06:30]} {[%emt 00:00:44]} Qc7 {[%clk 00:09:33]} {[%emt 00:00:11]}
30. Re2 {[%clk 00:06:08]} {[%emt 00:00:28]} Nc4 {[%clk 00:09:30]} {[%emt
00:00:08]} 31. g5 {[%clk 00:05:41]} {[%emt 00:00:31]} Ne5 {[%clk 00:09:23]}
{[%emt 00:00:13]} 32. gxf6+ {[%clk 00:05:13]} {[%emt 00:00:34]} Kxf6 {[%clk
00:09:24]} {[%emt 00:00:03]} 33. f4 {[%clk 00:05:14]} {[%emt 00:00:04]} 1-0

[Event "MČR juniorů a juniorek v rapid šachu 2023"]
[Site "Czech Republic"]
[Date "2023.09.23"]
[Round "3.32"]
[White "Zadrapova, Gabriela"]
[Black "Glasbergerova, Lucie"]
[Result "0-1"]
[TimeControl "20 min + 5 sec per move"]
[WhiteFideId "23753056"]
[BlackFideId "23725184"]
[WhiteElo "1206"]
[BlackElo "1314"]

1. e4 {[%clk 00:20:08]} {[%emt 00:00:02]} e5 {[%clk 00:20:08]} {[%emt
00:00:02]} 2. Nf3 {[%clk 00:20:10]} {[%emt 00:00:02]} Nc6 {[%clk 00:20:11]}
{[%emt 00:00:03]} 3. Nc3 {[%clk 00:20:13]} {[%emt 00:00:02]} Nf6 {[%clk
00:20:11]} {[%emt 00:00:05]} 4. Bb5 {[%clk 00:20:15]} {[%emt 00:00:03]} d6
{[%clk 00:19:32]} {[%emt 00:00:44]} 5. d3 {[%clk 00:20:14]} {[%emt 00:00:06]}
Bd7 {[%clk 00:19:31]} {[%emt 00:00:07]} 6. O-O {[%clk 00:20:11]} {[%emt
00:00:07]} Be7 {[%clk 00:19:31]} {[%emt 00:00:05]} 7. Be3 {[%clk 00:20:00]}
{[%emt 00:00:16]} O-O {[%clk 00:19:16]} {[%emt 00:00:20]} 8. Nh4 {[%clk
00:19:22]} {[%emt 00:00:42]} Ng4 {[%clk 00:18:02]} {[%emt 00:01:20]} 9. h3
{[%clk 00:18:44]} {[%emt 00:00:43]} Nxe3 {[%clk 00:17:54]} {[%emt 00:00:13]} 10.
fxe3 {[%clk 00:18:35]} {[%emt 00:00:14]} Bxh4 {[%clk 00:17:50]} {[%emt
00:00:08]} 11. d4 {[%clk 00:18:07]} Qg5 {[%clk 00:16:09]} {[%emt 00:02:19]} 12.
Rf3 {[%clk 00:17:54]} Rad8 {[%clk 00:14:36]} {[%emt 00:01:55]} 13. Bc4 {[%clk
00:17:31]} a6 {[%clk 00:12:12]} {[%emt 00:02:59]} 14. Qf1 {[%clk 00:17:24]} Qg6
{[%clk 00:10:47]} {[%emt 00:01:41]} 15. dxe5 Nxe5 16. Rf4 {[%clk 00:16:05]}
{[%emt 00:00:25]} Bg5 {[%emt 00:00:46]} 17. Rf2 {[%clk 00:15:43]} {[%emt
00:00:02]} Nxc4 {[%clk 00:10:14]} {[%emt 00:00:12]} 18. Qxc4 {[%clk 00:15:44]}
{[%emt 00:00:03]} Bxe3 {[%clk 00:10:02]} {[%emt 00:00:17]} 19. Nd5 {[%clk
00:15:43]} {[%emt 00:00:06]} Bxf2+ {[%clk 00:09:46]} {[%emt 00:00:21]} 20. Kxf2
{[%emt 00:00:50]} Qe6 {[%emt 00:00:13]} 21. Kg1 {[%clk 00:15:30]} {[%emt
00:00:07]} c6 {[%clk 00:09:00]} {[%emt 00:00:10]} 22. Ne3 {[%clk 00:15:26]}
{[%emt 00:00:08]} Qxc4 {[%clk 00:08:57]} {[%emt 00:00:08]} 23. Nxc4 {[%clk
00:15:30]} {[%emt 00:00:02]} Be6 {[%clk 00:08:51]} {[%emt 00:00:11]} 24. b3
{[%clk 00:15:29]} {[%emt 00:00:06]} Bxc4 {[%clk 00:08:53]} {[%emt 00:00:03]} 25.
bxc4 {[%clk 00:15:32]} {[%emt 00:00:02]} Rfe8 {[%clk 00:08:57]} {[%emt
00:00:01]} 26. Re1 {[%clk 00:15:35]} {[%emt 00:00:02]} d5 {[%clk 00:08:59]}
{[%emt 00:00:04]} 27. cxd5 {[%clk 00:15:37]} {[%emt 00:00:03]} cxd5 {[%emt
00:00:03]} 28. Rb1 {[%clk 00:15:29]} {[%emt 00:00:10]} b5 {[%clk 00:09:05]}
{[%emt 00:00:03]} 29. Re1 {[%clk 00:15:24]} {[%emt 00:00:10]} dxe4 {[%clk
00:09:08]} {[%emt 00:00:02]} 30. Re3 {[%clk 00:15:20]} {[%emt 00:00:09]} Rd2
{[%clk 00:09:09]} {[%emt 00:00:04]} 31. Rc3 {[%clk 00:15:16]} {[%emt 00:00:09]}
e3 {[%clk 00:09:05]} {[%emt 00:00:09]} 32. Kf1 {[%clk 00:15:13]} {[%emt
00:00:08]} e2+ {[%clk 00:09:06]} {[%emt 00:00:04]} 33. Ke1 {[%clk 00:15:16]}
{[%emt 00:00:02]} Rd1+ {[%clk 00:09:08]} {[%emt 00:00:04]} 34. Kf2 {[%clk
00:15:17]} {[%emt 00:00:03]} e1=Q+ {[%clk 00:09:08]} {[%emt 00:00:06]} 35. Kf3
{[%clk 00:15:16]} {[%emt 00:00:05]} Qxc3+ {[%clk 00:09:09]} {[%emt 00:00:03]}
36. Kg4 {[%clk 00:15:18]} {[%emt 00:00:03]} Rd4+ {[%clk 00:09:10]} {[%emt
00:00:05]} 37. Kh5 {[%clk 00:15:19]} {[%emt 00:00:03]} Re5# {[%clk 00:09:11]}
{[%emt 00:00:05]} 0-1

[Event "MČR juniorů a juniorek v rapid šachu 2023"]
[Site "Czech Republic"]
[Date "2023.09.23"]
[Round "3.33"]
[White "Halama, Tomas"]
[Black "Martinkovicova, Nela"]
[Result "1-0"]
[TimeControl "20 min + 5 sec per move"]
[WhiteFideId "397970"]
[BlackFideId "23715596"]
[WhiteElo "1306"]
[BlackElo "1049"]

1. c4 {[%clk 00:20:08]} {[%emt 00:00:02]} c5 {[%clk 00:20:08]} {[%emt
00:00:03]} 2. Nc3 {[%clk 00:20:12]} g6 {[%clk 00:20:08]} {[%emt 00:00:05]} 3.
e3 {[%clk 00:20:10]} {[%emt 00:00:06]} Bg7 {[%clk 00:20:08]} {[%emt 00:00:05]}
4. Nge2 {[%clk 00:20:12]} {[%emt 00:00:02]} Nc6 {[%clk 00:20:10]} {[%emt
00:00:04]} 5. g3 {[%clk 00:20:14]} {[%emt 00:00:02]} d6 {[%clk 00:20:07]}
{[%emt 00:00:09]} 6. Bg2 {[%clk 00:20:12]} {[%emt 00:00:05]} Nf6 {[%clk
00:19:56]} {[%emt 00:00:17]} 7. O-O {[%clk 00:20:04]} {[%emt 00:00:13]} O-O
{[%clk 00:19:51]} {[%emt 00:00:11]} 8. b3 {[%clk 00:19:19]} {[%emt 00:00:50]}
Be6 {[%clk 00:19:38]} {[%emt 00:00:18]} 9. Bb2 {[%clk 00:18:50]} {[%emt
00:00:33]} Qd7 {[%clk 00:19:37]} {[%emt 00:00:07]} 10. d4 {[%clk 00:18:14]}
{[%emt 00:00:41]} a6 {[%clk 00:18:32]} {[%emt 00:01:11]} 11. d5 {[%clk
00:18:14]} {[%emt 00:00:05]} Bh3 {[%clk 00:16:18]} {[%emt 00:02:19]} 12. dxc6
{[%clk 00:18:05]} {[%emt 00:00:13]} bxc6 {[%clk 00:16:20]} {[%emt 00:00:04]} 13.
Nf4 {[%clk 00:17:40]} {[%emt 00:00:29]} Bxg2 {[%clk 00:15:56]} {[%emt
00:00:29]} 14. Kxg2 {[%clk 00:17:43]} {[%emt 00:00:02]} Rad8 {[%clk 00:14:55]}
{[%emt 00:01:06]} 15. Qe2 {[%clk 00:17:21]} {[%emt 00:00:26]} d5 {[%clk
00:14:20]} {[%emt 00:00:42]} 16. cxd5 {[%clk 00:16:57]} {[%emt 00:00:29]} cxd5
{[%clk 00:13:45]} {[%emt 00:00:40]} 17. Rfd1 {[%clk 00:16:34]} {[%emt
00:00:26]} e6 {[%clk 00:12:32]} {[%emt 00:01:19]} 18. Na4 {[%clk 00:15:19]}
{[%emt 00:01:21]} Qc6 {[%clk 00:11:30]} {[%emt 00:01:05]} 19. Rac1 {[%clk
00:14:57]} {[%emt 00:00:28]} d4+ {[%clk 00:10:44]} {[%emt 00:00:51]} 20. Qf3
{[%clk 00:14:33]} {[%emt 00:00:30]} Qxf3+ {[%clk 00:09:25]} {[%emt 00:01:24]}
21. Kxf3 {[%clk 00:14:35]} {[%emt 00:00:02]} dxe3 {[%clk 00:09:10]} {[%emt
00:00:21]} 22. fxe3 {[%clk 00:14:35]} {[%emt 00:00:04]} Rc8 {[%clk 00:08:15]}
{[%emt 00:01:00]} 23. Rxc5 {[%clk 00:14:27]} {[%emt 00:00:13]} Rxc5 {[%clk
00:07:53]} {[%emt 00:00:27]} 24. Nxc5 {[%clk 00:14:27]} {[%emt 00:00:04]} Ne8
{[%clk 00:07:23]} {[%emt 00:00:36]} 25. Bxg7 {[%clk 00:14:11]} {[%emt
00:00:21]} Kxg7 {[%clk 00:07:17]} {[%emt 00:00:11]} 26. Rd7 {[%clk 00:14:04]}
{[%emt 00:00:12]} Nf6 {[%clk 00:07:11]} {[%emt 00:00:11]} 27. Nfxe6+ {[%clk
00:13:51]} {[%emt 00:00:18]} Kg8 {[%clk 00:06:36]} {[%emt 00:00:39]} 28. Nxf8
{[%clk 00:13:50]} {[%emt 00:00:06]} Nxd7 {[%clk 00:06:21]} {[%emt 00:00:21]} 29.
Nfxd7 {[%clk 00:13:53]} {[%emt 00:00:02]} f5 {[%clk 00:06:18]} {[%emt
00:00:08]} 30. Nxa6 {[%clk 00:13:50]} {[%emt 00:00:08]} Kf7 {[%clk 00:06:21]}
{[%emt 00:00:02]} 31. b4 {[%clk 00:13:53]} {[%emt 00:00:02]} Ke7 {[%clk
00:06:24]} {[%emt 00:00:02]} 32. Nac5 {[%clk 00:13:55]} {[%emt 00:00:02]} Kd6
{[%clk 00:06:16]} {[%emt 00:00:13]} 33. b5 {[%clk 00:13:58]} {[%emt 00:00:03]}
Kc7 {[%clk 00:06:01]} {[%emt 00:00:20]} 34. b6+ {[%clk 00:14:01]} {[%emt
00:00:02]} Kd6 {[%clk 00:05:51]} {[%emt 00:00:15]} 35. b7 {[%clk 00:14:04]}
{[%emt 00:00:03]} Ke7 {[%clk 00:05:53]} {[%emt 00:00:02]} 36. b8=Q {[%clk
00:14:00]} {[%emt 00:00:08]} Kf7 {[%clk 00:05:49]} {[%emt 00:00:08]} 37. Qf8#
{[%emt 00:00:04]} 1-0

[Event "MČR juniorů a juniorek v rapid šachu 2023"]
[Site "Czech Republic"]
[Date "2023.09.23"]
[Round "4.1"]
[White "Prazak, Daniel"]
[Black "Dolensky, Filip"]
[Result "1/2-1/2"]
[TimeControl "20 min + 5 sec per move"]
[WhiteFideId "23709456"]
[BlackFideId "399000"]
[WhiteElo "2029"]
[BlackElo "1942"]

1. d4 {[%clk 00:20:08]} Nf6 {[%clk 00:20:06]} {[%emt 00:00:05]} 2. c4 {[%clk
00:20:12]} {[%emt 00:00:02]} c5 {[%clk 00:20:10]} 3. d5 {[%clk 00:20:07]}
{[%emt 00:00:10]} b5 {[%clk 00:20:14]} 4. cxb5 {[%clk 00:19:11]} {[%emt
00:01:01]} e6 {[%clk 00:20:18]} 5. Nc3 {[%clk 00:18:53]} {[%emt 00:00:22]} exd5
{[%clk 00:20:21]} {[%emt 00:00:02]} 6. Nxd5 {[%clk 00:18:56]} {[%emt 00:00:02]}
Bb7 {[%clk 00:20:25]} 7. Nxf6+ {[%clk 00:16:53]} {[%emt 00:02:07]} Qxf6 {[%clk
00:20:28]} {[%emt 00:00:02]} 8. Nf3 {[%clk 00:16:57]} {[%emt 00:00:02]} d5
{[%clk 00:20:20]} {[%emt 00:00:12]} 9. e3 {[%clk 00:16:43]} {[%emt 00:00:19]}
Bd6 {[%clk 00:20:21]} {[%emt 00:00:04]} 10. Be2 {[%clk 00:16:18]} {[%emt
00:00:30]} O-O {[%clk 00:20:23]} {[%emt 00:00:03]} 11. O-O {[%clk 00:16:00]}
{[%emt 00:00:23]} Nd7 {[%clk 00:20:27]} {[%emt 00:00:02]} 12. Qc2 {[%clk
00:11:58]} {[%emt 00:04:07]} h6 {[%clk 00:20:04]} {[%emt 00:00:28]} 13. Qc3
{[%clk 00:06:49]} {[%emt 00:05:13]} Qe6 {[%clk 00:18:52]} {[%emt 00:01:17]} 14.
b3 {[%clk 00:06:05]} {[%emt 00:00:50]} d4 {[%clk 00:15:02]} {[%emt 00:03:54]}
15. Qc2 {[%clk 00:03:09]} {[%emt 00:03:02]} Be4 {[%clk 00:13:11]} {[%emt
00:01:56]} 16. Qd2 {[%clk 00:00:56]} {[%emt 00:02:18]} d3 {[%clk 00:10:07]}
{[%emt 00:03:09]} 17. Bxd3 {[%clk 00:00:49]} {[%emt 00:00:13]} Bxf3 {[%clk
00:08:17]} {[%emt 00:01:54]} 18. gxf3 {[%clk 00:00:53]} {[%emt 00:00:01]} Ne5
{[%clk 00:06:34]} {[%emt 00:01:48]} 19. Be2 {[%clk 00:00:23]} {[%emt 00:00:35]}
Rad8 {[%clk 00:05:57]} {[%emt 00:00:41]} 20. f4 {[%clk 00:00:09]} {[%emt
00:00:19]} Ng4 {[%clk 00:03:46]} {[%emt 00:02:17]} 21. Qc2 {[%clk 00:00:06]}
{[%emt 00:00:09]} Rfe8 {[%clk 00:02:18]} {[%emt 00:01:33]} 22. Bb2 {[%clk
00:00:08]} {[%emt 00:00:02]} Bxf4 {[%clk 00:00:44]} {[%emt 00:01:38]} 23. exf4
{[%clk 00:00:09]} {[%emt 00:00:05]} Qxe2 {[%clk 00:00:42]} {[%emt 00:00:06]} 24.
Qxe2 {[%clk 00:00:13]} {[%emt 00:00:02]} Rxe2 {[%clk 00:00:47]} 25. Ba3 {[%clk
00:00:14]} {[%emt 00:00:04]} Rd5 {[%clk 00:00:38]} {[%emt 00:00:14]} 1/2-1/2